bitfinex/quotes_BTCUSD_20240927
["timestamp","ask_amount","ask_price","bid_price","bid_amount"]
[1727429167674,2.41040616,65853.0,65852.0,1.82308864]
[1727429168178,1.63675156,65853.0,65852.0,1.80908864]
[1727429168462,1.57595356,65853.0,65852.0,1.86320495]
[1727429168669,0.77844581,65853.0,65852.0,1.86320495]
[1727429168905,0.75259883,65853.0,65852.0,1.86320495]
[1727429169185,0.48953626,65853.0,65852.0,1.87620495]
[1727429169425,0.4529657,65853.0,65852.0,1.87620495]
[1727429169672,0.37336171,65853.0,65852.0,1.87620495]
[1727429169932,0.25383171,65853.0,65852.0,0.69940695]
[1727429170138,0.91101647,65876.0,65875.0,0.5]
[1727429170502,0.91101647,65876.0,65875.0,1.62679599]
[1727429170631,0.91101647,65876.0,65875.0,1.457802]
[1727429170875,0.19199399,65900.0,65879.0,0.274793]
[1727429171144,0.001656,65920.0,65879.0,0.4698217]
[1727429171145,0.0761,65902.0,65879.0,0.4698217]
[1727429171406,0.0761,65902.0,65879.0,4.06127499]
[1727429171648,0.0761,65902.0,65879.0,4.46347499]
[1727429171866,0.0761,65902.0,65879.0,4.39810699]
[1727429172096,0.0761,65902.0,65879.0,4.05164699]
[1727429172321,0.0761,65902.0,65879.0,3.577578]
[1727429174043,0.0761,65902.0,65879.0,2.196168]
[1727429174230,0.0761,65902.0,65879.0,1.95290409]
[1727429174469,0.0761,65902.0,65879.0,1.969326]
[1727429176499,0.0761,65902.0,65879.0,2.092326]
[1727429177668,0.22768843,65891.0,65879.0,2.24761394]
[1727429178348,0.22434643,65891.0,65890.0,0.251768]
[1727429178622,0.22434643,65891.0,65890.0,0.40705594]
[1727429179044,0.22768843,65901.0,65891.0,0.251765]
[1727429179256,0.22768843,65901.0,65891.0,0.4521056]
[1727429179257,0.080058,65892.0,65891.0,0.4521056]
[1727429179719,0.080058,65892.0,65891.0,0.40705294]
[1727429179939,0.080058,65892.0,65891.0,0.411779]
[1727429180416,0.080058,65892.0,65891.0,0.45683166]
[1727429181304,0.080058,65892.0,65891.0,0.46283166]
[1727429181753,0.27205199,65892.0,65891.0,0.01072606]
[1727429181982,0.45715199,65892.0,65891.0,0.006]
[1727429182441,0.45715199,65892.0,65891.0,0.012]
[1727429182904,0.45715199,65892.0,65891.0,0.006]
[1727429183122,0.45715199,65892.0,65886.0,0.151775]
[1727429183123,0.002,65888.0,65887.0,0.151774]
[1727429183345,0.0825,65888.0,65887.0,0.251774]
[1727429183598,0.2654,65888.0,65887.0,0.251774]
[1727429184080,0.2654,65888.0,65887.0,0.151774]
[1727429184288,0.2634,65888.0,65887.0,0.151774]
[1727429184507,0.2644,65888.0,65887.0,0.151774]
[1727429184725,0.2644,65888.0,65887.0,0.251774]
[1727429185796,0.2664,65888.0,65887.0,0.251774]
[1727429186257,0.2664,65888.0,65887.0,0.151774]
[1727429186482,0.2664,65888.0,65887.0,0.19682666]
[1727429186697,0.2654,65888.0,65887.0,0.19682666]
[1727429187158,0.45839399,65888.0,65884.0,0.04505266]
[1727429187375,0.45839399,65888.0,65882.0,0.04505266]
[1727429187376,0.002,65883.0,65882.0,0.04505266]
[1727429187630,0.2714,65882.0,65881.0,0.251788]
[1727429188053,0.2734,65882.0,65881.0,0.251788]
[1727429188266,0.2734,65882.0,65881.0,0.1]
[1727429188482,0.2734,65882.0,65881.0,0.251788]
[1727429188483,0.2714,65882.0,65881.0,0.251788]
[1727429189147,0.2734,65882.0,65881.0,0.251788]
[1727429189381,0.2734,65882.0,65881.0,0.29684066]
[1727429189784,0.2734,65882.0,65881.0,0.003]
[1727429190051,0.2734,65882.0,65879.0,0.06840303]
[1727429190052,0.002,65880.0,65879.0,0.04588166]
[1727429190292,0.2727,65880.0,65879.0,0.04588166]
[1727429190540,0.46469399,65880.0,65879.0,0.000829]
[1727429191287,0.002,65872.0,65871.0,0.19686366]
[1727429191544,0.2743,65872.0,65871.0,0.19694812]
[1727429191739,0.2743,65872.0,65871.0,0.151811]
[1727429192183,0.2763,65872.0,65871.0,0.151811]
[1727429192407,0.2763,65872.0,65871.0,0.21938503]
[1727429192691,0.2763,65872.0,65871.0,0.151811]
[1727429193398,0.2763,65872.0,65871.0,0.152811]
[1727429193862,0.2763,65872.0,65871.0,0.22051719]
[1727429193863,0.2743,65872.0,65871.0,0.22051719]
[1727429194133,0.2743,65872.0,65871.0,0.22151719]
[1727429194976,0.2763,65872.0,65871.0,0.22151719]
[1727429196528,0.2743,65872.0,65871.0,0.22151719]
[1727429197389,0.2743,65872.0,65871.0,0.153811]
[1727429197806,0.2763,65872.0,65871.0,0.153811]
[1727429198632,0.2763,65872.0,65871.0,0.04719763]
[1727429199102,0.2763,65872.0,65871.0,0.002]
[1727429201039,0.002,65871.0,65869.0,0.04519763]
[1727429201289,0.083,65870.0,65869.0,0.19701363]
[1727429201494,0.1968,65869.0,65868.0,0.04519763]
[1727429201663,0.2744,65869.0,65868.0,0.04519763]
[1727429202534,0.2724,65869.0,65868.0,0.19701951]
[1727429202735,0.2724,65869.0,65868.0,0.19701842]
[1727429203004,0.2724,65869.0,65868.0,0.151818]
[1727429203194,0.2724,65869.0,65868.0,0.155818]
[1727429203542,0.2724,65869.0,65868.0,0.151818]
[1727429204383,0.2724,65869.0,65868.0,0.155818]
[1727429204588,0.0776,65869.0,65868.0,0.34609293]
[1727429204788,0.0776,65869.0,65868.0,0.255818]
[1727429205013,0.0776,65869.0,65868.0,0.36866166]
[1727429205365,0.0776,65869.0,65868.0,0.259818]
[1727429205856,0.0776,65869.0,65868.0,0.37280116]
[1727429207292,0.0776,65869.0,65868.0,0.259818]
[1727429207714,0.0776,65869.0,65868.0,0.37281466]
[1727429208014,0.0776,65869.0,65868.0,0.37364366]
[1727429208795,0.0776,65869.0,65868.0,0.260647]
[1727429211527,0.0776,65869.0,65868.0,0.37364799]
[1727429211714,0.0776,65869.0,65868.0,0.260647]
[1727429212547,0.0776,65869.0,65868.0,0.37364545]
[1727429212922,0.0776,65869.0,65868.0,0.260647]
[1727429214724,0.0776,65869.0,65868.0,0.37363627]
[1727429216439,0.0796,65869.0,65868.0,0.37363627]
[1727429216651,0.07931077,65869.0,65868.0,0.07663567]
[1727429216867,0.07902154,65869.0,65868.0,0.008829]
[1727429217066,0.07902154,65869.0,65868.0,0.05403649]
[1727429217305,0.07873214,65869.0,65868.0,0.20585449]
[1727429217768,0.07873214,65869.0,65868.0,0.05403649]
[1727429218469,0.26253214,65869.0,65868.0,0.008829]
[1727429220879,0.26053214,65869.0,65868.0,0.160647]
[1727429221308,0.19199399,65873.0,65868.0,0.160647]
[1727429221309,0.0797,65874.0,65873.0,0.151807]
[1727429221734,0.0797,65874.0,65873.0,0.21962131]
[1727429222624,0.0797,65874.0,65873.0,0.151807]
[1727429223043,0.0807,65874.0,65873.0,0.151807]
[1727429224102,0.0797,65874.0,65873.0,0.26485677]
[1727429224320,0.0807,65874.0,65873.0,0.26485677]
[1727429224589,0.0807,65874.0,65873.0,0.151807]
[1727429225244,0.0807,65874.0,65873.0,0.2648956]
[1727429225450,0.0807,65874.0,65873.0,0.151807]
[1727429226373,0.0817,65874.0,65873.0,0.151807]
[1727429227323,0.002,65873.0,65868.0,0.13648873]
[1727429227544,0.0797,65874.0,65873.0,0.151807]
[1727429228211,0.07959642,65874.0,65873.0,0.151807]
[1727429228647,0.07959642,65874.0,65871.0,0.28747073]
[1727429229063,0.07959642,65874.0,65871.0,0.13565973]
[1727429229274,0.002,65872.0,65871.0,0.28747073]
[1727429229486,0.002,65872.0,65871.0,0.28770802]
[1727429230612,0.002,65872.0,65871.0,0.28970802]
[1727429231093,0.002,65873.0,65872.0,0.151809]
[1727429231309,0.07959642,65874.0,65873.0,0.151807]
[1727429231524,0.02959642,65874.0,65873.0,0.28770402]
[1727429231759,0.02959642,65874.0,65873.0,0.151807]
[1727429232537,0.02874537,65874.0,65873.0,0.151807]
[1727429233314,0.03040137,65874.0,65873.0,0.151807]
[1727429235064,0.03040137,65874.0,65872.0,0.13601795]
[1727429235279,0.03040137,65874.0,65868.0,0.000829]
[1727429235280,0.002,65869.0,65868.0,0.13684695]
[1727429235493,0.1823,65869.0,65868.0,0.000829]
[1727429235710,0.2641,65869.0,65868.0,0.000829]
[1727429235925,0.45609399,65869.0,65868.0,0.000829]
[1727429236154,0.2641,65869.0,65868.0,0.000829]
[1727429238170,0.45609399,65869.0,65868.0,0.000829]
[1727429238858,0.45709399,65869.0,65868.0,0.000829]
[1727429239274,0.45609399,65869.0,65868.0,0.000829]
[1727429239541,0.45709399,65869.0,65868.0,0.000829]
[1727429241902,0.2651,65869.0,65868.0,0.000829]
[1727429244735,0.2641,65869.0,65868.0,0.000829]
[1727429244934,0.2651,65869.0,65868.0,0.000829]
[1727429245642,0.45709399,65869.0,65868.0,0.000829]
[1727429245862,0.2631,65869.0,65868.0,0.000829]
[1727429246090,0.2631,65869.0,65868.0,0.152647]
[1727429246360,0.2631,65869.0,65868.0,0.000829]
[1727429246361,0.2651,65869.0,65868.0,0.000829]
[1727429247283,0.416916,65869.0,65868.0,0.000829]
[1727429247980,0.415916,65869.0,65868.0,0.11423402]
[1727429248210,0.416916,65869.0,65868.0,0.000829]
[1727429248444,0.416916,65869.0,65868.0,0.11422927]
[1727429248666,0.415916,65869.0,65868.0,0.11422927]
[1727429248906,0.415916,65869.0,65868.0,0.09155268]
[1727429249171,0.416916,65869.0,65868.0,0.000829]
[1727429249405,0.416916,65869.0,65868.0,0.068878]
[1727429249634,0.57220394,65869.0,65868.0,0.068878]
[1727429250309,0.57220394,65869.0,65868.0,0.04620303]
[1727429250310,0.59520394,65869.0,65868.0,0.04620303]
[1727429250524,0.59520394,65869.0,65868.0,0.000829]
[1727429250965,0.59420394,65869.0,65868.0,0.000829]
[1727429251414,0.59420394,65869.0,65868.0,0.001829]
[1727429251415,0.59520394,65869.0,65868.0,0.001829]
[1727429251649,0.002,65863.0,65862.0,0.04220303]
[1727429251862,0.61492399,65863.0,65862.0,0.04220303]
[1727429252503,0.2691,65863.0,65862.0,0.04220303]
[1727429252717,0.2721,65863.0,65862.0,0.09174806]
[1727429253049,0.46409399,65863.0,65862.0,0.09174806]
[1727429253147,0.46409399,65863.0,65862.0,0.001]
[1727429253373,0.46409399,65863.0,65862.0,0.002]
[1727429253599,0.46409399,65863.0,65862.0,0.001]
[1727429254047,0.2691,65863.0,65861.0,0.11343508]
[1727429254281,0.2691,65863.0,65862.0,0.09069891]
[1727429254507,0.2691,65863.0,65862.0,0.11443508]
[1727429254508,0.2761,65863.0,65862.0,0.11443508]
[1727429254744,0.47009399,65863.0,65862.0,0.001]
[1727429254969,0.46309399,65863.0,65861.0,0.11343508]
[1727429255205,0.46809399,65863.0,65862.0,0.09068495]
[1727429255410,0.46809399,65863.0,65861.0,0.11343508]
[1727429255627,0.46609399,65863.0,65861.0,0.11343508]
[1727429255854,0.46609399,65863.0,65862.0,0.001]
[1727429256088,0.46309399,65863.0,65861.0,0.11343508]
[1727429256308,0.196,65862.0,65861.0,0.06801837]
[1727429256562,0.002,65860.0,65859.0,0.06801837]
[1727429256965,0.153837,65860.0,65859.0,0.06801837]
[1727429257180,0.002,65859.0,65858.0,0.06801837]
[1727429257408,0.002,65861.0,65858.0,0.151841]
[1727429257627,0.002,65861.0,65859.0,0.0679903]
[1727429257852,0.194,65862.0,65861.0,0.151834]
[1727429258270,0.194,65862.0,65861.0,0.26526908]
[1727429258474,0.194,65862.0,65861.0,0.151834]
[1727429258898,0.198,65862.0,65861.0,0.151834]
[1727429259561,0.198,65862.0,65858.0,0.303683]
[1727429260229,0.194,65862.0,65858.0,0.303683]
[1727429260464,0.194,65862.0,65860.0,0.151836]
[1727429260696,0.189,65862.0,65860.0,0.151836]
[1727429260923,0.193,65862.0,65860.0,0.151836]
[1727429261135,0.002,65861.0,65860.0,0.151836]
[1727429261560,0.189,65862.0,65861.0,0.151834]
[1727429261800,0.193,65862.0,65861.0,0.151834]
[1727429262264,0.193,65862.0,65860.0,0.151837]
[1727429262503,0.193,65862.0,65861.0,0.09064753]
[1727429262745,0.195,65862.0,65861.0,0.09064753]
[1727429262988,0.193,65862.0,65861.0,0.24248153]
[1727429263227,0.193,65862.0,65861.0,0.11330941]
[1727429263446,0.189,65862.0,65861.0,0.11330941]
[1727429263669,0.193,65862.0,65861.0,0.11330941]
[1727429264116,0.189,65862.0,65861.0,0.26514341]
[1727429264328,0.189,65862.0,65861.0,0.11330941]
[1727429264579,0.193,65862.0,65860.0,0.11330941]
[1727429264797,0.002,65861.0,65860.0,0.11330941]
[1727429265877,0.193,65862.0,65861.0,0.151834]
[1727429266093,0.193,65862.0,65861.0,0.26513935]
[1727429266297,0.189,65862.0,65861.0,0.26513935]
[1727429266745,0.193,65862.0,65861.0,0.151834]
[1727429267175,0.189,65862.0,65861.0,0.151834]
[1727429267395,0.189,65862.0,65860.0,0.26514135]
[1727429267614,0.193,65862.0,65860.0,0.26514135]
[1727429268034,0.002,65861.0,65860.0,0.26514135]
[1727429268244,0.002,65861.0,65860.0,0.11330535]
[1727429268443,0.189,65862.0,65861.0,0.151834]
[1727429268684,0.18904,65862.0,65861.0,0.151834]
[1727429268930,0.18904,65862.0,65861.0,0.4517517]
[1727429268931,4e-05,65862.0,65861.0,0.4517517]
[1727429269157,4e-05,65862.0,65861.0,0.40712194]
[1727429269882,4e-05,65862.0,65861.0,0.40794994]
[1727429270092,0.00404,65862.0,65861.0,0.45974994]
[1727429270388,0.00404,65862.0,65861.0,0.51424131]
[1727429270780,0.001656,65869.0,65868.0,0.151818]
[1727429270983,0.001656,65869.0,65868.0,0.46194181]
[1727429271219,0.001656,65869.0,65868.0,0.45890594]
[1727429271432,0.001656,65869.0,65868.0,0.65089993]
[1727429271881,0.001656,65869.0,65868.0,0.65289993]
[1727429273462,0.001656,65869.0,65868.0,0.65389993]
[1727429274136,0.001656,65869.0,65868.0,0.65089993]
[1727429274350,0.001656,65869.0,65868.0,2.33453893]
[1727429274578,0.001656,65869.0,65868.0,1.77638793]
[1727429274798,0.001656,65869.0,65868.0,1.29169893]
[1727429275035,0.001656,65869.0,65868.0,0.46772822]
[1727429275274,0.001656,65869.0,65868.0,0.26064028]
[1727429275534,0.001656,65869.0,65868.0,0.254818]
[1727429275787,0.080956,65869.0,65868.0,0.003]
[1727429276240,0.080956,65869.0,65867.0,0.15182]
[1727429276458,0.19199399,65868.0,65867.0,0.15182]
[1727429277134,0.080956,65869.0,65868.0,0.151818]
[1727429277580,0.080956,65869.0,65866.0,0.303646]
[1727429277581,0.084956,65869.0,65866.0,0.303646]
[1727429278039,0.002,65868.0,65867.0,0.151821]
[1727429278243,0.19399399,65868.0,65864.0,0.151827]
[1727429278807,0.002,65865.0,65864.0,0.151827]
[1727429279234,0.002,65867.0,65862.0,0.13582794]
[1727429279459,0.19399399,65864.0,65863.0,0.13582794]
[1727429279665,0.38219399,65864.0,65863.0,0.15183]
[1727429280083,0.45799399,65864.0,65863.0,0.11326112]
[1727429280314,0.45599399,65864.0,65863.0,0.15183]
[1727429281255,0.45799399,65864.0,65863.0,0.15183]
[1727429281715,0.002,65862.0,65861.0,0.152661]
[1727429281951,0.45599399,65864.0,65863.0,0.15183]
[1727429282182,0.45599399,65864.0,65863.0,0.26509799]
[1727429283122,0.45999399,65864.0,65863.0,0.26509799]
[1727429283591,0.45599399,65864.0,65863.0,0.26509799]
[1727429283811,0.45799399,65864.0,65863.0,0.11326799]
[1727429284063,0.268,65864.0,65863.0,0.26509799]
[1727429286620,0.268,65864.0,65863.0,0.26508675]
[1727429287529,0.268,65864.0,65863.0,0.15183]
[1727429288718,0.268,65864.0,65863.0,0.26508875]
[1727429288940,0.264,65864.0,65863.0,0.15183]
[1727429289165,0.264,65864.0,65863.0,0.26508947]
[1727429289394,0.268,65864.0,65863.0,0.26508947]
[1727429291494,0.268,65864.0,65863.0,0.26509497]
[1727429291827,0.268,65864.0,65863.0,0.15183]
[1727429292133,0.268,65864.0,65863.0,0.26509294]
[1727429292337,0.268,65864.0,65863.0,0.15183]
[1727429292554,0.268,65864.0,65863.0,0.26509392]
[1727429292753,0.268,65864.0,65863.0,0.15183]
[1727429292978,0.268,65864.0,65863.0,0.2650977]
[1727429295109,0.269656,65864.0,65863.0,0.2650977]
[1727429296702,0.269656,65864.0,65863.0,0.1132677]
[1727429296923,0.46164999,65864.0,65863.0,0.1132677]
[1727429297123,0.46364999,65864.0,65862.0,0.1140957]
[1727429297384,0.269656,65864.0,65862.0,0.1140957]
[1727429297637,0.269656,65864.0,65863.0,0.15183]
[1727429298293,0.46164999,65864.0,65862.0,0.000828]
[1727429298726,0.002,65863.0,65862.0,0.000828]
[1727429299492,0.46164999,65864.0,65862.0,0.000828]
[1727429299493,0.46364999,65864.0,65862.0,0.000828]
[1727429299741,0.45964999,65864.0,65863.0,0.11329062]
[1727429299965,0.46364999,65864.0,65863.0,0.11329062]
[1727429300194,0.46164999,65864.0,65863.0,0.11329062]
[1727429300426,0.45764999,65864.0,65863.0,0.11329062]
[1727429300667,0.46364999,65864.0,65863.0,0.11329062]
[1727429301910,0.45964999,65864.0,65863.0,0.26512062]
[1727429302152,0.45964999,65864.0,65863.0,0.11329062]
[1727429302394,0.45964999,65864.0,65862.0,0.000828]
[1727429302395,0.002,65863.0,65862.0,0.000828]
[1727429302892,0.15383,65863.0,65862.0,0.000828]
[1727429303163,0.01765724,65863.0,65862.0,0.11414454]
[1727429303393,0.16948724,65863.0,65862.0,0.09148655]
[1727429303846,0.17248724,65863.0,65862.0,0.09148655]
[1727429304350,0.02065724,65863.0,65862.0,0.09148655]
[1727429304576,0.01865724,65863.0,65862.0,0.24333278]
[1727429304793,0.01865724,65863.0,65862.0,0.15266]
[1727429305032,0.003,65863.0,65862.0,0.15266]
[1727429305481,0.265656,65864.0,65863.0,0.15183]
[1727429305691,0.265656,65864.0,65863.0,0.26515978]
[1727429307517,0.265656,65864.0,65863.0,0.26515949]
[1727429308639,0.269656,65864.0,65863.0,0.11332949]
[1727429309038,0.265656,65864.0,65863.0,0.11332949]
[1727429309488,0.271656,65864.0,65862.0,0.11415749]
[1727429309719,0.002,65863.0,65862.0,0.11415749]
[1727429309943,0.15383,65863.0,65862.0,0.000828]
[1727429310770,0.002,65863.0,65862.0,0.000828]
[1727429310988,0.15383,65863.0,65862.0,0.000828]
[1727429311200,0.002,65863.0,65862.0,0.000828]
[1727429311411,0.15383,65863.0,65862.0,0.000828]
[1727429311877,0.15683,65863.0,65862.0,0.000828]
[1727429312307,0.15383,65863.0,65862.0,0.000828]
[1727429312730,0.003,65863.0,65862.0,0.000828]
[1727429312965,0.003,65863.0,65862.0,0.11416208]
[1727429313190,0.15483,65863.0,65862.0,0.000828]
[1727429314311,0.15683,65863.0,65862.0,0.000828]
[1727429315178,0.15683,65863.0,65862.0,0.06883237]
[1727429315179,0.58381794,65863.0,65862.0,0.06883237]
[1727429315399,0.176832,65862.0,65861.0,0.000828]
[1727429315629,0.60381994,65862.0,65861.0,0.000828]
[1727429316294,0.002,65854.0,65853.0,0.04534173]
[1727429316520,0.002,65854.0,65852.0,0.06883337]
[1727429316521,0.229253,65853.0,65852.0,0.04617073]
[1727429316738,0.57264094,65853.0,65852.0,0.04617073]
[1727429317407,0.57264094,65853.0,65852.0,0.000829]
[1727429318550,0.57264094,65853.0,65852.0,0.04618207]
[1727429318991,0.57264094,65853.0,65852.0,0.04718207]
[1727429319205,0.57264094,65853.0,65852.0,0.001829]
[1727429319438,0.57264094,65853.0,65852.0,0.000829]
[1727429319657,0.58564094,65853.0,65852.0,0.002829]
[1727429320329,0.65201468,65853.0,65852.0,0.002829]
[1727429320575,0.60864094,65853.0,65852.0,0.002829]
[1727429320840,0.59564094,65853.0,65852.0,0.001829]
[1727429321265,0.60664094,65853.0,65852.0,0.002829]
[1727429321719,0.60664094,65853.0,65852.0,0.001829]
[1727429322148,0.60664094,65853.0,65852.0,0.002829]
[1727429322358,0.60664094,65853.0,65852.0,0.001829]
[1727429322796,0.60664094,65853.0,65852.0,0.002829]
[1727429323232,0.62227169,65853.0,65852.0,0.002829]
[1727429323445,0.62227169,65853.0,65852.0,0.001829]
[1727429323882,0.62227169,65853.0,65851.0,0.00083]
[1727429323883,0.176855,65852.0,65851.0,0.00083]
[1727429324096,0.441957,65851.0,65850.0,0.00013]
[1727429324309,0.61287569,65851.0,65850.0,0.00013]
[1727429325182,0.2843,65850.0,65842.0,0.000828]
[1727429325404,0.438174,65844.0,65842.0,0.000828]
[1727429325617,0.60909269,65844.0,65842.0,0.000828]
[1727429326081,0.025,65843.0,65819.0,0.000829]
[1727429326387,0.025,65843.0,65789.0,0.13603373]
[1727429326388,0.3033,65814.0,65789.0,0.13603373]
[1727429326546,0.01763075,65813.0,65794.0,0.303976]
[1727429326771,0.01533391,65812.0,65789.0,0.04415758]
[1727429326998,0.002,65813.0,65789.0,0.04415758]
[1727429327272,0.002,65813.0,65803.0,0.04466264]
[1727429327491,0.002,65813.0,65794.0,0.303977]
[1727429327492,0.002,65813.0,65799.0,0.303953]
[1727429327712,4e-05,65814.0,65803.0,1.06953725]
[1727429327937,4e-05,65814.0,65813.0,0.151945]
[1727429328161,4e-05,65814.0,65806.0,0.303923]
[1727429328420,0.014,65813.0,65807.0,0.1]
[1727429328645,0.014,65813.0,65812.0,0.251947]
[1727429329317,4e-05,65814.0,65812.0,0.251947]
[1727429329527,4e-05,65814.0,65813.0,0.2549835]
[1727429330664,4e-05,65814.0,65813.0,0.251945]
[1727429331108,0.01104,65814.0,65813.0,0.251945]
[1727429331538,4e-05,65814.0,65813.0,0.251945]
[1727429331762,0.00204,65814.0,65813.0,0.251945]
[1727429332223,0.00204,65814.0,65813.0,0.151945]
[1727429332890,0.00304,65814.0,65813.0,0.151945]
[1727429333118,0.00204,65814.0,65813.0,0.151945]
[1727429333565,4e-05,65814.0,65813.0,0.153945]
[1727429333780,4e-05,65814.0,65813.0,0.151945]
[1727429333997,0.00304,65814.0,65813.0,0.151945]
[1727429334232,0.00604,65814.0,65813.0,0.151945]
[1727429334668,0.00304,65814.0,65813.0,0.151945]
[1727429335086,0.00604,65814.0,65813.0,0.151945]
[1727429335740,0.00604,65814.0,65813.0,0.30723294]
[1727429337392,4e-05,65814.0,65813.0,0.30723294]
[1727429337643,0.00304,65814.0,65813.0,0.45542978]
[1727429337888,0.00604,65814.0,65813.0,0.45239139]
[1727429338145,4e-05,65814.0,65813.0,0.45238535]
[1727429338602,4e-05,65814.0,65813.0,0.40723294]
[1727429339084,4e-05,65814.0,65813.0,0.251945]
[1727429339321,4e-05,65814.0,65813.0,0.25498354]
[1727429339557,4e-05,65814.0,65813.0,0.25698354]
[1727429339797,4e-05,65814.0,65813.0,0.25498354]
[1727429340028,4e-05,65814.0,65813.0,0.25798354]
[1727429340264,4e-05,65814.0,65813.0,0.25498354]
[1727429340497,4e-05,65814.0,65813.0,0.41027148]
[1727429340749,4e-05,65814.0,65813.0,0.41023294]
[1727429340998,4e-05,65814.0,65813.0,0.40723294]
[1727429341234,4e-05,65814.0,65813.0,0.41023294]
[1727429342508,4e-05,65814.0,65813.0,0.45538535]
[1727429342753,0.15183962,65821.0,65814.0,0.1]
[1727429342988,0.91154933,65829.0,65815.0,0.08234655]
[1727429343211,0.91154933,65829.0,65826.0,0.151915]
[1727429343450,0.91154933,65829.0,65827.0,0.07930807]
[1727429343732,1.10684933,65843.0,65828.0,0.07678175]
[1727429343997,0.91154933,65836.0,65835.0,0.151894]
[1727429344258,0.91154933,65843.0,65839.0,0.303769]
[1727429344518,0.91154933,65850.0,65840.0,0.07678175]
[1727429344769,0.91154933,65850.0,65841.0,0.07678175]
[1727429345047,0.91154933,65850.0,65844.0,0.151873]
[1727429345269,0.91154933,65850.0,65845.0,0.07678175]
[1727429345270,0.151866,65848.0,65845.0,0.07678175]
[1727429345482,0.001658,65851.0,65846.0,0.07678175]
[1727429345700,0.001658,65851.0,65840.0,0.303762]
[1727429345701,0.153517,65851.0,65845.0,0.15187]
[1727429345913,0.151867,65848.0,65846.0,0.07520708]
[1727429346131,0.151867,65848.0,65843.0,0.151876]
[1727429346387,0.151867,65848.0,65844.0,0.07520789]
[1727429346612,0.151867,65847.0,65845.0,0.07520789]
[1727429346837,0.151867,65847.0,65846.0,0.001]
[1727429347060,0.151878,65843.0,65834.0,0.30379]
[1727429347285,0.151878,65843.0,65825.0,0.91154933]
[1727429347286,0.151892,65836.0,65835.0,0.98679992]
[1727429347774,0.1519,65833.0,65828.0,0.1]
[1727429348022,0.303778,65838.0,65821.0,0.34899848]
[1727429348023,0.15191,65829.0,65826.0,0.91154933]
[1727429348274,0.385594,65834.0,65827.0,0.07529603]
[1727429348275,0.303805,65832.0,65827.0,0.07529603]
[1727429348556,0.15191,65829.0,65828.0,0.07529603]
[1727429348751,0.303802,65833.0,65828.0,0.07529603]
[1727429348977,0.0818,65834.0,65829.0,0.07529603]
[1727429349203,0.151902,65832.0,65830.0,0.07529603]
[1727429349428,0.151893,65836.0,65831.0,0.07529603]
[1727429349673,0.1941,65838.0,65827.0,0.303826]
[1727429349674,0.1941,65838.0,65836.0,0.151891]
[1727429349924,0.1941,65838.0,65837.0,0.07529603]
[1727429350180,0.00136777,65851.0,65850.0,0.15186]
[1727429350429,0.00136777,65851.0,65850.0,0.22715603]
[1727429351987,0.001656,65863.0,65862.0,0.151832]
[1727429352198,0.001656,65863.0,65862.0,0.48241597]
[1727429352419,0.001656,65863.0,65862.0,0.53110528]
[1727429352628,0.001656,65863.0,65862.0,0.55002319]
[1727429353147,0.001656,65863.0,65862.0,0.55002465]
[1727429353366,0.001656,65863.0,65862.0,0.48241597]
[1727429353588,0.001656,65863.0,65862.0,0.55000577]
[1727429353808,0.001656,65864.0,65863.0,0.25183]
[1727429354032,0.001656,65864.0,65863.0,0.57556615]
[1727429354256,0.22781119,65885.0,65878.0,0.251795]
[1727429354482,0.22781119,65885.0,65878.0,0.48237897]
[1727429354947,0.001658,65892.0,65878.0,0.48237897]
[1727429355599,0.22781119,65890.0,65878.0,0.37205744]
[1727429355825,0.22781119,65890.0,65878.0,0.32709103]
[1727429356037,0.001658,65892.0,65878.0,0.32709103]
[1727429356038,0.22781119,65889.0,65878.0,0.32709103]
[1727429357158,0.002656,65879.0,65878.0,0.23809103]
[1727429357450,0.002656,65879.0,65878.0,0.23309103]
[1727429357669,0.001656,65879.0,65878.0,0.22709103]
[1727429358130,0.004656,65879.0,65878.0,0.07529603]
[1727429358341,0.22512519,65889.0,65871.0,0.303621]
[1727429358553,0.15528794,65888.0,65872.0,0.07477925]
[1727429358769,0.15528794,65888.0,65867.0,0.303638]
[1727429358770,0.003,65879.0,65873.0,0.91074681]
[1727429359447,0.003,65879.0,65875.0,0.151802]
[1727429359896,0.003,65879.0,65868.0,0.303636]
[1727429360119,0.007,65879.0,65875.0,0.151801]
[1727429360349,0.004,65879.0,65875.0,0.151801]
[1727429360608,0.1928,65880.0,65876.0,0.151798]
[1727429360833,0.004,65879.0,65876.0,0.151798]
[1727429361300,0.004,65879.0,65877.0,0.151797]
[1727429361537,0.005,65879.0,65877.0,0.151795]
[1727429361782,0.001,65879.0,65877.0,0.151795]
[1727429362032,0.1928,65880.0,65879.0,0.151793]
[1727429362956,0.002,65905.0,65870.0,0.91074681]
[1727429362957,0.303465,65906.0,65871.0,0.1]
[1727429363219,0.91074681,65894.0,65891.0,0.151765]
[1727429363443,0.91074681,65894.0,65887.0,0.151773]
[1727429363704,0.151757,65895.0,65887.0,0.151774]
[1727429363941,0.151757,65895.0,65871.0,1.16603475]
[1727429363942,0.15528794,65891.0,65871.0,1.01074681]
[1727429364158,0.15178,65885.0,65879.0,0.91074681]
[1727429364374,0.005,65880.0,65879.0,0.91074681]
[1727429364834,0.195,65884.0,65880.0,0.15179]
[1727429365954,0.195,65884.0,65879.0,0.001]
[1727429366170,0.195,65884.0,65882.0,0.151784]
[1727429366391,0.195,65884.0,65879.0,0.001]
[1727429366809,0.19470977,65884.0,65871.0,0.91074681]
[1727429367032,0.20370977,65884.0,65880.0,0.152789]
[1727429367235,0.20170977,65884.0,65880.0,0.001]
[1727429367660,0.227384,65883.0,65879.0,0.001]
[1727429367885,0.227384,65883.0,65876.0,0.1518]
[1727429368353,0.227384,65883.0,65880.0,0.001]
[1727429368772,0.0756,65883.0,65880.0,0.001]
[1727429369427,0.0756,65883.0,65880.0,0.15279]